bitfinex-derivatives/quotes_ETHF0:USTF0_20260128
["timestamp","ask_amount","ask_price","bid_price","bid_amount"]
[1769579468800,0.40995858,3004.5,3003.7,2.13284873]
[1769579469700,0.40995858,3004.5,3003.7,2.045]
[1769579493120,0.33527753,3004.7,3003.8,1.465534]
[1769579493416,3.98380477,3004.6,3003.8,1.465534]
[1769579493613,0.33527753,3004.7,3003.8,1.465534]
[1769579493816,4.31907128,3004.6,3003.8,1.465534]
[1769579494017,0.33527753,3004.6,3003.8,1.465534]
[1769579501520,0.33527753,3004.6,3003.7,2.045]
[1769579503224,3.94530809,3004.5,3003.7,2.045]
[1769579503427,0.33705785,3004.5,3003.7,2.045]
[1769579520436,4.06225222,3004.4,3003.2,0.16673]
[1769579520644,0.33742385,3004.2,3003.2,1.954]
[1769579521638,0.33808659,3004.0,3003.2,1.954]
[1769579527546,0.00268451,3004.9,3003.2,1.954]
[1769579527547,0.33696929,3004.8,3003.2,1.954]
[1769579527747,0.33696929,3004.6,3003.2,1.954]
[1769579527943,4.06882537,3004.5,3003.3,1.46523567]
[1769579528749,0.33696929,3004.6,3003.3,1.46523567]
[1769579529145,0.33474596,3004.8,3003.3,1.46523567]
[1769579529350,4.0686128,3004.7,3003.7,1.46523567]
[1769579529553,0.33474596,3004.8,3003.6,0.1667]
[1769579532047,0.33474596,3004.8,3003.7,1.46523567]
[1769579533554,0.00268451,3004.9,3003.7,1.63193567]
[1769579533754,0.33886586,3004.9,3003.7,1.63193567]
[1769579538257,0.33886586,3004.9,3003.7,0.1667]
[1769579538560,0.33886586,3004.9,3003.8,1.954]
[1769579542966,0.33886586,3004.9,3003.7,0.1667]
[1769579543259,0.33640056,3004.7,3003.1,0.16673]
[1769579543464,0.33640056,3004.6,3003.2,3.332]
[1769579543763,0.33640056,3004.6,3003.3,1.954]
[1769579545159,0.33540755,3004.4,3003.3,1.954]
[1769579545355,0.33540755,3004.4,3002.7,0.00351974]
[1769579545562,0.33540755,3004.2,3002.8,5.286]
[1769579546772,0.33540755,3004.2,3002.7,0.00351974]
[1769579546972,0.33540755,3004.2,3002.9,2.899]
[1769579548470,0.33545041,3004.0,3002.8,3.332]
[1769579548667,0.33545041,3004.0,3002.9,2.774]
[1769579559082,0.33741685,3003.8,3002.7,0.00351974]
[1769579559382,0.33741685,3003.8,3002.8,2.906]
[1769579563588,0.33800826,3003.6,3002.8,2.906]
[1769579567890,0.33800826,3003.6,3002.8,4.37243742]
[1769579568290,0.33820725,3004.0,3002.8,4.37243742]
[1769579569392,0.33807294,3003.8,3002.8,4.37243742]
[1769579570187,0.33807294,3003.8,3003.3,1.46643742]
[1769579570393,0.33802055,3004.5,3003.3,1.46643742]
[1769579570596,0.33802055,3004.3,3003.5,1.46643742]
[1769579570794,0.33802055,3004.1,3003.5,1.46643742]
[1769579572596,0.33802055,3004.1,3003.3,1.46643742]
[1769579573304,4.40182857,3004.0,3003.3,1.46643742]
[1769579573488,0.33907925,3004.0,3003.3,1.46643742]
[1769579574098,0.33907925,3004.0,3003.1,1.46643742]
[1769579575294,4.40511373,3003.9,3003.1,1.46643742]
[1769579575490,0.33919474,3003.9,3003.1,1.46643742]
[1769579583807,0.33919474,3003.9,3002.9,4.79943742]
[1769579585205,0.33919474,3003.9,3002.9,3.333]
[1769579585411,0.33910968,3003.7,3002.9,3.333]
[1769579585714,0.33910968,3003.7,3003.0,2.311]
[1769579585920,0.33910968,3003.7,3003.0,2.13]
[1769579588330,0.33918346,3004.1,3003.1,1.46643742]
[1769579588619,0.33918346,3003.9,3003.1,1.46643742]
[1769579588819,4.0689297,3003.8,3003.1,1.46643742]
[1769579589019,0.33918346,3003.9,3003.1,1.46643742]
[1769579589225,0.33963666,3003.7,3003.0,2.13]
[1769579591728,0.33963666,3003.7,3002.9,1.46643742]
[1769579591923,0.33963666,3003.7,3003.0,2.479]
[1769579603430,0.33961752,3003.3,3002.7,0.00351974]
[1769579603632,0.33961752,3003.3,3002.7,2.14251974]
[1769579604530,0.33961752,3003.3,3002.7,0.00351974]
[1769579608044,0.33961752,3003.3,3001.5,1.63325742]
[1769579608045,0.33984232,3002.7,3002.1,1.955]
[1769579609042,0.34409634,3002.7,3002.1,1.95818279]
[1769579619457,0.00425402,3002.7,3002.1,1.95818279]
[1769579619751,0.00425402,3002.7,3002.3,1.46643742]
[1769579620748,0.00425402,3002.7,3002.1,3.42462021]
[1769579623856,0.33744803,3003.4,3002.5,1.46643742]
[1769579624059,4.18921355,3003.3,3002.5,1.46643742]
[1769579624255,45.78100023,3004.0,3002.7,1.46643742]
[1769579624256,0.33741737,3004.0,3002.7,1.46643742]
[1769579624456,4.19022565,3003.9,3003.3,1.46643742]
[1769579624763,0.33741737,3004.0,3003.2,1.955]
[1769579625059,0.34066064,3004.0,3003.3,1.955]
[1769579625461,0.34066064,3004.0,3002.7,1.63318742]
[1769579625655,0.34066064,3004.0,3003.3,2.238]
[1769579631361,0.34066064,3004.0,3002.7,0.16675]
[1769579631665,0.34066064,3004.0,3002.8,5.289]
[1769579641870,0.34066064,3004.0,3002.7,0.16675]
[1769579642069,0.34066064,3004.0,3002.8,5.288]
[1769579647070,0.34066064,3004.0,3002.9,3.333]
[1769579650768,0.34066064,3004.0,3002.1,0.16996279]
[1769579650972,0.33709244,3003.8,3002.2,5.288]
[1769579651273,0.33708039,3003.6,3002.2,5.288]
[1769579651471,0.33708039,3003.4,3002.2,5.288]
[1769579651662,0.33708039,3003.2,3002.2,5.288]
[1769579652275,0.33708039,3003.2,3002.1,0.00318279]
[1769579652575,0.33708039,3003.2,3002.2,1.955]
[1769579656274,0.33498862,3003.6,3002.3,1.46605516]
[1769579656582,4.16472479,3003.5,3002.3,1.46605516]
[1769579656767,0.33498862,3003.8,3002.3,1.46605516]
[1769579656977,4.14638985,3003.7,3002.3,1.46605516]
[1769579657167,4.14638985,3003.6,3002.3,1.46605516]
[1769579657377,0.3380314,3004.0,3002.7,1.46605516]
[1769579657583,4.14679979,3003.9,3002.7,1.46605516]
[1769579657770,0.3380314,3004.0,3002.7,1.46605516]
[1769579660283,0.3380314,3004.0,3002.4,0.16677]
[1769579663283,4.12836157,3003.9,3002.4,0.16677]
[1769579663490,0.33423976,3003.8,3002.4,0.16677]
[1769579666695,0.33423976,3003.8,3002.5,3.333]
[1769579668694,0.33402603,3004.6,3002.7,1.46605516]
[1769579669003,0.1666,3005.5,3002.5,3.333]
[1769579669004,10.97516642,3005.6,3004.1,1.46605516]
[1769579669189,1.46605516,3005.4,3004.0,1.955]
[1769579669590,1.46605516,3005.4,3003.6,0.0032788]
[1769579669788,1.46855134,3005.4,3003.7,5.288]
[1769579670189,1.46855134,3005.4,3003.7,5.29083721]
[1769579670897,0.1670546,3004.9,3003.5,1.955]
[1769579673293,0.1670546,3004.9,3003.4,1.955]
[1769579680612,0.16083208,3004.5,3003.4,1.955]
[1769579680913,0.16083208,3004.3,3003.4,1.955]
[1769579683417,0.16083208,3004.1,3003.4,1.955]
[1769579684616,0.16083208,3004.1,3003.4,1.96875024]
[1769579685907,0.16083208,3004.1,3002.9,0.16674]
[1769579686217,0.16083208,3003.9,3002.9,2.13568667]
[1769579686515,0.16083208,3003.9,3002.9,1.96894667]
[1769579687602,1.62722495,3003.7,3002.9,1.96894667]
[1769579688517,1.46639287,3003.3,3002.7,0.01255338]
[1769579688712,1.63106702,3003.3,3002.6,1.955]
[1769579689711,0.16467415,3003.3,3002.6,1.955]
[1769579690114,0.16512544,3003.6,3002.6,1.955]
[1769579696924,0.16512544,3003.6,3002.7,1.46639287]
[1769579699124,0.16686964,3003.9,3002.9,1.46639287]
[1769579699420,4.98100023,3004.7,3003.1,1.46639287]
[1769579699421,0.16685951,3004.1,3003.1,1.46639287]
[1769579699723,3.974957,3004.0,3003.1,1.46639287]
[1769579699922,0.16685951,3004.1,3003.1,1.46639287]
[1769579700124,3.97498766,3004.0,3003.1,1.46639287]
[1769579700324,3.97498766,3003.9,3003.1,1.46639287]
[1769579700524,0.16685568,3004.0,3003.1,1.46639287]
[1769579700727,3.97673335,3003.9,3003.1,1.46639287]
[1769579701029,0.16685568,3004.0,3003.1,1.46639287]
[1769579701216,3.97673372,3003.9,3003.1,1.46639287]
[1769579701421,0.16666019,3004.2,3003.3,1.46639287]
[1769579701625,3.97789837,3004.1,3003.3,1.46639287]
[1769579701829,0.16666019,3004.2,3003.3,1.46639287]
[1769579702127,0.16666019,3004.0,3003.1,1.46639287]
[1769579702829,0.16666019,3004.0,3002.9,1.46639287]
[1769579703930,0.16666019,3004.0,3003.1,1.46639287]
[1769579704831,0.16655942,3004.3,3003.1,1.46639287]
[1769579705034,4.1466802,3004.2,3003.1,1.46639287]
[1769579705221,3.98012078,3004.1,3003.1,1.46639287]
[1769579705530,4.14808549,3004.1,3003.1,1.46639287]
[1769579705832,0.16796471,3004.1,3003.1,1.46639287]
[1769579706131,3.98265636,3004.0,3003.1,1.46639287]
[1769579706428,0.16796471,3004.1,3003.1,1.46639287]
[1769579706629,3.98280095,3004.0,3003.1,1.46639287]
[1769579706830,0.16796471,3004.1,3003.1,1.46639287]
[1769579707025,3.98280017,3004.0,3003.3,1.46639287]
[1769579707330,0.16796471,3004.1,3003.3,1.46639287]
[1769579707529,3.98301154,3004.0,3003.3,1.46639287]
[1769579707729,0.16796471,3004.1,3003.3,1.46639287]
[1769579707919,3.98301018,3004.0,3003.3,1.46639287]
[1769579708118,0.16796471,3004.1,3003.3,1.46639287]
[1769579708331,3.98309366,3004.0,3003.3,1.46639287]
[1769579708542,0.16796471,3004.1,3003.3,1.46639287]
[1769579708727,3.98322568,3004.0,3003.3,1.46639287]
[1769579708927,0.16796471,3004.1,3003.3,1.46639287]
[1769579709132,3.98322782,3004.0,3003.3,1.46639287]
[1769579709435,0.16796471,3004.1,3003.3,1.46639287]
[1769579709631,3.9834836,3004.0,3003.3,1.46639287]
[1769579709833,0.16796471,3004.1,3003.3,1.46639287]
[1769579710033,3.98348285,3004.0,3003.3,1.46639287]
[1769579710237,0.16796471,3004.1,3003.3,1.46639287]
[1769579710426,3.98374194,3004.0,3003.3,1.46639287]
[1769579710641,0.16796471,3004.1,3003.3,1.46639287]
[1769579710839,3.98374369,3004.0,3003.3,1.46639287]
[1769579711135,0.16822799,3004.3,3003.3,1.46639287]
[1769579711438,0.16833832,3004.1,3003.3,1.46639287]
[1769579711830,0.16833832,3004.3,3003.3,1.46639287]
[1769579713037,0.16833363,3004.6,3003.7,1.46639287]
[1769579713230,3.98401629,3004.5,3003.7,1.46639287]
[1769579713534,3.98401629,3004.4,3003.7,1.46639287]
[1769579713738,0.16846067,3004.5,3003.7,1.46639287]
[1769579713934,3.94586473,3004.4,3003.9,1.46639287]
[1769579714235,0.16846067,3004.7,3003.7,1.46639287]
[1769579714433,0.16845597,3004.5,3003.7,1.46639287]
[1769579714640,0.16845597,3004.5,3003.6,1.955]
[1769579716035,0.16845597,3004.5,3003.7,1.46639287]
[1769579716243,0.16877397,3004.7,3003.7,1.46639287]
[1769579716435,3.94364771,3004.6,3003.7,1.46639287]
[1769579716636,0.16877397,3004.7,3003.7,1.46639287]
[1769579716837,0.16877397,3004.5,3003.6,1.955]
[1769579720038,1.63639864,3004.8,3003.6,1.955]
[1769579720243,4.10947451,3004.7,3003.6,1.955]
[1769579720445,0.1700001,3004.7,3003.6,1.955]
[1769579723244,1.63672821,3004.6,3003.6,1.955]
[1769579727348,0.16831351,3004.5,3003.6,1.955]
[1769579728543,0.16830966,3004.3,3003.6,1.955]
[1769579731438,0.16859925,3004.1,3003.4,1.984]
[1769579739752,1.46639287,3004.2,3003.4,1.984]
[1769579740151,0.16683062,3004.3,3003.4,1.984]
[1769579742659,0.16683029,3004.1,3003.4,1.984]
[1769579751066,0.1668748,3004.5,3003.4,1.984]
[1769579751265,0.1668575,3004.3,3003.4,1.984]
[1769579760276,0.16694497,3004.5,3003.4,1.984]
[1769579760476,3.96000723,3004.4,3003.4,2.15071]
[1769579760681,0.16694497,3005.1,3003.7,1.46593859]
[1769579761180,0.16694497,3005.1,3003.4,1.984]
[1769579761684,0.16694497,3005.1,3003.6,0.1667]
[1769579768085,0.16694497,3005.1,3003.7,0.1667]
[1769579768886,0.16694497,3005.1,3003.7,1.63263859]
[1769579774590,0.16694497,3005.1,3003.8,3.332]
[1769579785599,0.16694497,3005.1,3003.8,3.49869]
[1769579785799,0.16694497,3005.1,3003.9,3.332]
[1769579789102,0.00249618,3005.4,3004.1,1.46593859]
[1769579789302,3.83205198,3005.3,3004.1,1.46593859]
[1769579789604,3.83205198,3005.2,3004.1,1.63260859]
[1769579789903,0.00249618,3005.4,3004.1,1.63260859]
[1769579790097,0.17667541,3005.4,3004.1,1.63260859]
[1769579790997,0.17667541,3005.4,3004.1,0.16667]
[1769579798611,0.17447737,3004.7,3003.4,1.954]
[1769579809618,0.17447737,3004.7,3003.7,1.46512128]
[1769579811715,0.17447737,3004.7,3003.9,1.46512128]
[1769579811919,0.17499156,3005.2,3003.9,1.46512128]
[1769579812722,0.17499156,3005.2,3004.3,1.46512128]
[1769579812919,0.17499156,3005.2,3004.3,0.00353484]
[1769579815121,0.17749728,3005.4,3004.7,1.46512128]
[1769579815323,0.17749728,3005.4,3004.5,1.46512128]
[1769579815518,0.17749728,3005.4,3004.4,1.954]
[1769579816424,0.17749728,3005.4,3004.5,1.46512128]
[1769579819322,0.17749728,3005.4,3004.4,1.954]
[1769579828642,0.173257,3005.3,3004.4,1.954]
[1769579835342,0.17328684,3005.1,3004.4,1.954]
[1769579837138,0.17328684,3005.1,3004.3,0.00353484]
[1769579837341,0.17328684,3005.1,3004.4,2.051]
[1769579850249,1.63840812,3005.1,3004.4,2.051]
[1769579850447,0.17139596,3004.6,3004.1,1.954]
[1769579851351,0.17139596,3004.6,3004.1,1.95721682]
[1769579852153,0.00249618,3005.4,3004.1,1.95721682]
[1769579852154,0.17169007,3005.0,3004.1,1.95721682]
[1769579854756,0.16301847,3004.8,3004.1,1.95721682]
[1769579857363,0.16237448,3005.0,3004.1,1.95721682]
[1769579861858,1.46512128,3005.3,3004.1,1.95721682]
[1769579862063,0.16215586,3005.2,3004.1,1.95721682]
[1769579875065,0.00249618,3005.4,3004.1,1.95721682]
[1769579875066,0.16216876,3005.4,3004.1,1.95721682]
[1769579875264,3.80525783,3005.3,3004.1,1.95721682]
[1769579875460,0.00249618,3005.4,3004.1,2.12389682]
[1769579876967,0.16236526,3005.4,3004.1,2.12389682]
[1769579880678,0.00249618,3005.4,3004.3,1.46502]
[1769579882769,0.15927332,3005.8,3004.3,1.46502]
[1769579882970,3.79563158,3005.7,3004.3,1.46502]
[1769579883170,0.15927332,3005.8,3004.3,1.46502]
[1769579883671,0.16294028,3005.8,3004.3,1.46502]
[1769579883866,0.16294028,3005.8,3004.7,1.46502]
[1769579884072,0.00366696,3005.8,3004.7,1.46502]
[1769579885183,0.15927109,3005.8,3004.6,0.16665]
[1769579888678,0.00366696,3005.8,3004.8,1.46502]
[1769579892877,0.00366696,3005.8,3004.6,0.16665]
[1769579893583,0.15825949,3005.8,3004.6,0.16665]
[1769579895786,0.00366696,3005.8,3004.6,0.16665]
[1769579896082,0.00366696,3005.8,3004.7,1.46502]
[1769579896483,0.00366696,3005.8,3004.7,1.63166]
[1769579896790,0.15461348,3006.3,3004.8,0.16664]
[1769579897685,0.15869512,3006.3,3004.8,0.16664]
[1769579901789,0.15869512,3006.3,3004.9,3.331]
[1769579911198,1.46502,3006.1,3004.8,0.16664]
[1769579911499,0.15525748,3006.0,3004.9,5.284]
[1769579916112,0.15525748,3006.0,3004.8,0.16664]
[1769579916299,0.15525748,3006.0,3004.9,1.954]
[1769579918805,0.00408164,3006.3,3004.9,1.954]
[1769579918806,0.15530938,3006.2,3004.9,1.954]
[1769579918999,3.78974487,3006.1,3004.9,1.954]
[1769579919201,0.15530938,3006.2,3004.9,1.954]
[1769579919508,3.77237664,3006.1,3004.9,1.954]
[1769579919700,0.15530938,3006.2,3004.9,2.12063]
[1769579919896,0.00408164,3006.3,3005.1,0.16662]
[1769579920205,0.00408164,3006.3,3005.2,1.46502]
[1769579920595,0.00408164,3006.3,3005.2,1.63163]
[1769579923208,0.00408164,3006.3,3005.2,0.16661]
[1769579923409,0.15945493,3006.3,3005.2,0.16661]
[1769579929618,0.15945493,3006.3,3005.3,1.46355122]
[1769579930614,0.00408164,3006.3,3005.5,1.46355122]
[1769579930822,0.15618482,3006.7,3005.5,1.46355122]
[1769579931719,0.15920993,3006.7,3005.5,1.46355122]
[1769579936321,0.15602336,3006.5,3005.4,0.1666]
[1769579936718,0.15602336,3006.3,3005.4,0.1666]
[1769579937424,0.15602336,3006.3,3005.5,6.178]
[1769579938324,0.1567023,3006.5,3005.5,7.64155122]
[1769579941221,0.1567023,3006.5,3005.5,6.178]
[1769579943723,0.1567023,3006.5,3005.5,7.64155122]
[1769579946521,0.1567023,3006.5,3005.5,6.178]
[1769579947023,0.1567023,3006.5,3005.6,3.33]
[1769579948731,0.15584602,3006.2,3005.3,3.33]
[1769579949029,0.15584602,3006.2,3005.4,2.868]
[1769579953834,0.14949545,3006.0,3005.0,7.31976553]
[1769579954036,0.14949545,3005.8,3005.1,2.878]
[1769579954334,0.14949545,3005.8,3005.2,2.879]
[1769579958834,0.14924199,3006.0,3005.2,2.879]
[1769579960434,0.14927044,3006.4,3005.2,2.879]
[1769579963434,0.14937491,3006.2,3005.2,2.879]
[1769579964927,0.14937491,3006.2,3005.3,0.01576165]
[1769579966532,0.14993297,3006.0,3005.3,0.01576165]
[1769579966731,0.14993297,3006.0,3005.2,2.879]
[1769579969436,0.14993297,3006.0,3005.2,2.89446329]
[1769579971036,0.14993297,3006.0,3005.2,2.18146329]
[1769579974441,0.14993297,3006.0,3005.3,0.01998597]
[1769579975240,0.14993297,3006.2,3005.3,0.01998597]
[1769579979141,0.14993297,3006.2,3005.6,1.49006385]
[1769579979336,0.14993297,3006.4,3005.7,0.02649942]
[1769579979541,0.14993297,3006.6,3005.8,1.49005064]
[1769579979741,0.14993297,3006.6,3005.9,0.02649942]
[1769579981343,0.14993297,3006.6,3005.8,1.46355122]
[1769579983148,3.90416675,3006.5,3005.8,1.46355122]
[1769579983442,0.14993297,3006.5,3005.8,1.46355122]
[1769579983649,0.14993297,3006.5,3005.8,1.48937591]
[1769579987048,0.14993297,3006.5,3005.8,0.02582469]
[1769579989848,0.14993297,3006.5,3005.8,1.48937591]
[1769579991553,0.14993297,3006.5,3005.8,0.02582469]
[1769579992756,0.14993297,3006.5,3005.6,0.02459456]
[1769579993056,0.14993297,3006.3,3005.0,0.02459456]
[1769580000167,0.00302511,3006.7,3005.3,0.1351742]
[1769580000375,4.98100023,3007.6,3006.0,0.1351742]
[1769580000574,0.4349219,3008.1,3006.2,0.1351742]
[1769580000873,1.46343978,3007.3,3005.6,0.1351742]
[1769580001071,6.44444001,3008.4,3006.2,0.3017342]
[1769580001373,0.00375862,3008.4,3006.7,0.1351742]
[1769580001574,0.00375862,3008.4,3006.7,0.13910156]
[1769580001769,0.26331359,3008.8,3007.8,0.1351742]
[1769580001972,8.31200023,3010.5,3008.2,0.1351742]
[1769580002271,0.14233385,3010.2,3008.2,0.1351742]
[1769580002470,40.8,3010.4,3007.8,1.46343978]
[1769580002471,0.14233385,3009.8,3007.9,0.1351742]
[1769580002675,0.14233385,3009.0,3007.3,0.1351742]
[1769580002970,0.14233385,3008.6,3007.3,0.1351742]
[1769580003162,0.00391632,3009.0,3007.7,0.1351742]
[1769580003369,0.00391632,3009.0,3008.2,0.1351742]
[1769580003567,0.14625017,3009.0,3007.5,0.1351742]
[1769580003766,0.14625017,3009.0,3007.2,0.1351742]
[1769580004369,0.00391632,3009.0,3007.8,0.1351742]
[1769580004570,0.14625017,3009.0,3007.4,0.1351742]
[1769580005273,0.14233385,3008.8,3007.1,2.0881742]
[1769580005470,0.14233385,3008.8,3007.2,0.1351742]
[1769580006875,0.14233385,3008.8,3007.0,0.1351742]
[1769580007582,0.14233385,3008.4,3006.9,3.331]
[1769580007771,0.14233385,3008.2,3006.9,3.331]
[1769580008085,0.14233385,3008.2,3007.0,0.1351742]
[1769580008974,0.14233385,3008.5,3007.3,0.1351742]
[1769580010584,0.14233385,3008.9,3007.7,0.1351742]
[1769580010782,0.00391632,3009.0,3008.1,0.1351742]
[1769580011582,0.14625017,3009.0,3008.1,0.1351742]
[1769580012176,0.00391632,3009.0,3008.1,0.1351742]
[1769580012382,0.14233385,3010.0,3008.3,0.1351742]
[1769580013293,0.14510894,3010.0,3008.3,0.1351742]
[1769580014780,0.14510894,3010.0,3008.5,0.1351742]
[1769580015088,0.00277509,3010.0,3008.5,0.3016042]
[1769580015286,0.00277509,3010.0,3008.6,0.1351742]
[1769580015474,0.14510894,3010.0,3008.6,0.1351742]
[1769580016884,0.14510894,3010.0,3008.3,0.1351742]
[1769580017484,0.14233385,3009.9,3008.3,0.1351742]
[1769580017785,0.14233385,3009.9,3008.2,3.329]
[1769580017975,0.14233385,3009.9,3008.2,3.4641742]
[1769580018988,0.14233385,3009.9,3008.3,0.1351742]
[1769580019590,0.00277509,3010.0,3008.4,0.1351742]
[1769580019785,0.00277509,3010.0,3008.9,0.1351742]
[1769580019988,0.14510894,3010.0,3008.9,0.13763584]
[1769580020395,0.00277509,3010.0,3008.9,0.13763584]
[1769580021089,0.14510894,3010.0,3008.9,0.13763584]
[1769580021487,0.14510894,3010.0,3008.9,0.00246164]
[1769580022990,0.14510894,3010.0,3008.2,0.16645]
[1769580023193,0.14510894,3010.0,3008.2,0.1351742]
[1769580024092,0.14510894,3010.0,3008.2,0.13792673]
[1769580024682,0.14510894,3010.0,3008.3,0.14402254]
[1769580024885,0.14510894,3010.0,3008.4,0.14638365]
[1769580029302,0.00277509,3010.0,3008.5,0.14638365]
[1769580031100,0.00277509,3010.0,3008.5,0.31281365]
[1769580031301,0.00277509,3010.0,3008.6,0.14638365]
[1769580032397,0.00277509,3010.0,3008.6,0.31280365]
[1769580032594,0.00277509,3010.0,3008.7,0.14638365]
[1769580032902,0.00277509,3010.0,3008.9,0.14638365]
[1769580034806,0.00277509,3010.0,3009.1,0.14638365]
[1769580034999,0.14415635,3010.6,3009.2,0.14638365]
[1769580035203,0.14415635,3010.9,3009.3,0.14638365]
[1769580035404,0.14415635,3010.9,3009.4,0.14638365]
[1769580035703,0.14415635,3010.9,3009.1,5.278]
[1769580035704,0.14415635,3012.5,3009.9,0.14638365]
[1769580035911,0.14415635,3012.3,3010.1,0.14638365]
[1769580036104,0.14415635,3012.1,3010.1,0.14638365]
[1769580036510,0.14415635,3012.1,3010.2,6.60871365]
[1769580036702,0.14415635,3012.1,3010.3,0.14638365]
[1769580038303,0.14415635,3012.1,3010.5,0.14638365]
[1769580038503,0.14415635,3012.1,3010.5,0.14986402]
[1769580039306,0.00264952,3012.5,3010.8,0.14638365]
[1769580039307,0.14680587,3012.5,3010.8,0.14638365]
[1769580039503,0.14680587,3012.5,3011.0,0.14638365]
[1769580040806,0.14680587,3012.5,3010.8,5.982]
[1769580041908,0.14680587,3012.5,3010.8,6.12787894]
[1769580042509,0.14415635,3012.4,3010.8,3.326]
[1769580042808,0.14415635,3012.2,3010.8,3.326]
[1769580047010,0.14415635,3011.6,3009.7,0.14638365]
[1769580047208,0.14415635,3011.4,3009.4,3.325]
[1769580047516,0.14415635,3011.4,3009.4,3.47138365]
[1769580047711,0.14415635,3011.2,3009.5,0.14638365]
[1769580047916,0.14415635,3011.1,3009.2,0.14638365]
[1769580048113,0.14415635,3011.1,3009.2,0.14921452]
[1769580048303,0.14415635,3010.9,3009.2,0.14921452]
[1769580050815,0.14415635,3010.9,3009.2,0.00283087]
[1769580051016,0.14415635,3010.7,3009.2,0.00283087]
[1769580051819,0.14415635,3010.7,3009.2,0.14921452]
[1769580062534,0.14415635,3010.7,3009.2,0.00283087]
[1769580063835,0.13882186,3010.4,3009.2,0.00283087]
[1769580064042,0.13882186,3010.2,3008.8,3.326]
[1769580064634,0.16633,3010.3,3008.8,3.326]
[1769580064635,0.13882186,3010.0,3008.8,3.326]
[1769580064935,0.1415709,3010.0,3008.8,3.32989777]
[1769580065432,0.1415709,3010.0,3008.8,3.47224877]
[1769580065637,0.00274904,3010.0,3008.9,0.308761]
[1769580065845,0.00274904,3010.0,3008.9,0.142351]
[1769580066440,0.1415709,3010.0,3008.9,0.142351]
[1769580066835,0.00274904,3010.0,3008.9,0.142351]
[1769580067541,0.00274904,3010.0,3009.1,0.142351]
[1769580068235,0.00274904,3010.0,3008.8,3.32989777]
[1769580068236,0.1415709,3010.0,3008.8,0.14624877]
[1769580073844,0.1415709,3010.0,3008.8,0.00389777]
[1769580075640,0.1415709,3010.0,3008.4,3.326]
[1769580076046,3.50389964,3009.9,3008.4,3.326]
[1769580076346,0.13882186,3009.8,3008.4,3.468351]
[1769580076538,0.13882186,3009.8,3008.4,3.47104979]
[1769580078944,0.13882186,3009.8,3008.5,0.142351]
[1769580079242,0.13882186,3009.8,3008.4,3.32869879]
[1769580079243,0.00274904,3010.0,3008.6,0.308771]
[1769580079439,0.1415709,3010.0,3008.7,0.142351]
[1769580080940,0.1415709,3010.0,3008.4,0.14504979]
[1769580082153,0.1415709,3010.0,3008.5,0.142351]
[1769580082647,0.1415709,3010.0,3008.7,0.142351]
[1769580083842,0.1415709,3010.0,3008.4,0.00269879]
[1769580083843,0.1415709,3010.0,3008.4,0.14504979]
[1769580084347,0.1415709,3010.0,3008.4,0.00269879]
[1769580084756,0.14272792,3009.8,3008.4,0.00269879]
[1769580087750,0.14272792,3009.6,3008.4,0.00269879]
[1769580088253,0.14272792,3009.4,3008.4,0.00269879]
[1769580088752,0.14272792,3009.4,3007.8,0.13982599]
[1769580089147,0.14272792,3009.2,3007.8,0.13982599]
[1769580089851,0.14272792,3009.2,3007.8,0.14337439]
[1769580090656,0.14272792,3009.2,3007.9,0.13982599]
[1769580092251,0.14272792,3009.2,3007.8,0.0035484]
[1769580093052,0.14272792,3009.2,3007.9,0.13982599]
[1769580093658,0.14272792,3009.5,3008.2,0.13982599]
[1769580093854,0.14272792,3009.8,3008.2,0.13982599]
[1769580096557,0.14272792,3009.8,3008.3,0.13982599]
[1769580096860,0.14272792,3009.8,3008.4,0.13982599]
[1769580098760,0.14547696,3010.0,3008.4,0.13982599]
[1769580099760,0.14547696,3010.0,3008.5,0.13982599]
[1769580100154,0.14547696,3010.0,3008.7,0.13982599]
[1769580100355,0.14272792,3010.3,3009.2,0.13982599]
[1769580101157,0.14272792,3010.6,3009.2,0.13982599]
[1769580101462,0.14606253,3010.6,3009.2,0.13982599]
[1769580101654,0.00333461,3010.6,3009.2,0.13982599]
[1769580102656,0.00333461,3010.6,3009.4,0.30620599]
[1769580102860,0.14272792,3011.2,3009.7,0.13982599]
[1769580103152,0.14272792,3011.2,3009.9,0.13982599]
[1769580103956,0.14640608,3011.2,3009.9,0.13982599]
[1769580107667,0.00367816,3011.2,3009.9,0.13982599]
[1769580107967,0.00367816,3011.2,3010.0,0.13982599]
[1769580108156,0.00367816,3011.2,3010.0,0.14380671]
[1769580108861,0.00367816,3011.2,3010.1,0.13982599]
[1769580109566,0.00367816,3011.2,3010.2,0.13982599]
[1769580110465,0.00367816,3011.2,3010.2,0.30616599]
[1769580110669,0.00367816,3011.2,3010.3,0.13982599]
[1769580111275,0.00367816,3011.2,3010.5,0.13982599]
[1769580113175,0.14640608,3011.2,3010.0,0.00398072]
[1769580116775,0.14640608,3011.2,3010.0,0.14345083]
[1769580120182,0.00367816,3011.2,3010.0,0.14345083]
[1769580122382,0.13457875,3011.9,3010.5,0.30579011]
[1769580122580,0.13457875,3012.2,3010.7,0.13947011]
[1769580122883,0.13457875,3012.2,3010.9,0.13947011]
[1769580123277,0.13457875,3012.5,3011.0,0.13947011]
[1769580123478,0.13718703,3012.5,3011.0,0.30576011]
[1769580123678,0.13718703,3012.5,3011.1,0.13947011]
[1769580125088,0.00260828,3012.5,3011.1,0.30576011]
[1769580125277,0.00260828,3012.5,3011.2,0.13947011]
[1769580126377,0.13718703,3012.5,3011.2,0.13947011]
[1769580126574,0.13718703,3012.5,3011.2,5.70847011]
[1769580127179,0.13718703,3012.5,3011.3,0.13947011]
[1769580128488,0.13718703,3012.5,3011.1,6.193]
[1769580128878,0.13718703,3012.5,3011.0,6.33047011]
[1769580129082,0.13718703,3012.5,3011.1,0.13947011]
[1769580130477,0.13718703,3012.5,3011.1,0.30576011]
[1769580130682,0.00260828,3012.5,3011.2,0.13947011]
[1769580131080,0.00260828,3012.5,3011.4,0.13947011]
[1769580131477,0.13718703,3012.5,3011.4,0.13947011]
[1769580132295,0.13718703,3012.5,3011.4,5.41447011]
[1769580132483,0.13718703,3012.5,3011.5,0.13947011]
[1769580133375,0.00260828,3012.5,3011.5,0.13947011]
[1769580135484,0.13718703,3012.5,3011.5,6.32347011]
[1769580135685,0.13718703,3012.5,3011.6,0.13947011]
[1769580136288,2.47636688,3012.9,3011.6,0.13947011]
[1769580136487,0.13457875,3014.0,3012.3,0.13947011]
[1769580136684,0.13457875,3013.8,3012.2,5.274]
[1769580137189,0.13457875,3013.6,3011.7,0.13947011]
[1769580137385,0.13886253,3013.6,3011.7,0.14205857]
[1769580137591,0.13457875,3013.4,3011.7,0.14205857]